[Event "Titled Tuesday Blitz September 27 Early 2022"]
[White "Narayanan, Srinath"]
[Black "Bilan, Danila"]
[WhiteFideId "5018420"]
[BlackFideId "24161918"]
[WhiteElo "2459"]
[BlackElo "2164"]
[Result "0-1"]
[Round "11"]
[TimeControl "180+1"]
[Date "2022.09.27"]
[WhiteClock "0:01:32"]
[BlackClock "0:00:15"]

1. Nf3 {[%clk 0:03:00]}  d5 {[%clk 0:02:54]} 2. e3 {[%clk 0:03:01]}  Nf6 {[%clk 0:02:54]} 3. c4 {[%clk 0:03:01]}  c6 {[%clk 0:02:54]} 4. b3 {[%clk 0:03:02]}  Bg4 {[%clk 0:02:45]} 5. Bb2 {[%clk 0:03:01]}  e6 {[%clk 0:02:44]} 6. Be2 {[%clk 0:02:59]}  Nbd7 {[%clk 0:02:44]} 7. O-O {[%clk 0:03:00]}  Bd6 {[%clk 0:02:43]} 8. Nc3 {[%clk 0:02:59]}  O-O {[%clk 0:02:43]} 9. d4 {[%clk 0:02:59]}  Rc8 {[%clk 0:02:37]} 10. a3 {[%clk 0:02:57]}  Re8 {[%clk 0:02:34]} 11. Qc2 {[%clk 0:02:56]}  Bb8 {[%clk 0:02:28]} 12. h3 {[%clk 0:02:56]}  Bh5 {[%clk 0:02:28]} 13. Rad1 {[%clk 0:02:53]}  Qc7 {[%clk 0:02:25]} 14. g3 {[%clk 0:02:52]}  Bg6 {[%clk 0:02:16]} 15. Bd3 {[%clk 0:02:51]}  Bh5 {[%clk 0:02:11]} 16. Be2 {[%clk 0:02:50]}  Bg6 {[%clk 0:02:11]} 17. Qd2 {[%clk 0:02:50]}  Ne4 {[%clk 0:01:58]} 18. Nxe4 {[%clk 0:02:47]}  Bxe4 {[%clk 0:01:59]} 19. Ne1 {[%clk 0:02:46]}  Nf6 {[%clk 0:01:52]} 20. Bd3 {[%clk 0:02:30]}  h5 {[%clk 0:01:47]} 21. Ng2 {[%clk 0:02:26]}  Bf3 {[%clk 0:01:27]} 22. Rde1 {[%clk 0:02:24]}  Ne4 {[%clk 0:01:23]} 23. Bxe4 {[%clk 0:02:22]}  dxe4 {[%clk 0:01:23]} 24. d5 {[%clk 0:02:14]}  cxd5 {[%clk 0:01:17]} 25. cxd5 {[%clk 0:02:12]}  Qc2 {[%clk 0:01:04]} 26. Qxc2 {[%clk 0:02:11]}  Rxc2 {[%clk 0:01:03]} 27. Bd4 {[%clk 0:02:12]}  e5 {[%clk 0:00:55]} 28. Ba1 {[%clk 0:02:11]}  Rec8 {[%clk 0:00:34]} 29. Nh4 {[%clk 0:02:09]}  Be2 {[%clk 0:00:32]} 30. Nf5 {[%clk 0:02:07]}  Kf8 {[%clk 0:00:29]} 31. d6 {[%clk 0:02:00]}  Bxf1 {[%clk 0:00:26]} 32. Bxe5 {[%clk 0:01:59]}  Bxh3 {[%clk 0:00:15]} 33. Bxg7+ {[%clk 0:01:45]}  Kg8 {[%clk 0:00:15]} 34. d7 {[%clk 0:01:42]}  Bxf5 {[%clk 0:00:14]} 35. dxc8=Q+ {[%clk 0:01:41]}  Bxc8 {[%clk 0:00:12]} 36. Bf6 {[%clk 0:01:39]}  Bg4 {[%clk 0:00:12]} 37. b4 {[%clk 0:01:37]}  Kh7 {[%clk 0:00:11]} 38. Rb1 {[%clk 0:01:33]}  Kg6 {[%clk 0:00:11]} 39. Bd4 {[%clk 0:01:33]}  Kf5 {[%clk 0:00:09]} 40. b5 {[%clk 0:01:31]}  b6 {[%clk 0:00:10]} 41. a4 {[%clk 0:01:31]}  Be5 {[%clk 0:00:10]} 42. a5 {[%clk 0:01:31]}  Bxd4 {[%clk 0:00:10]} 43. exd4 {[%clk 0:01:31]}  Rd2 {[%clk 0:00:09]} 44. a6 {[%clk 0:01:27]}  Rd1+ {[%clk 0:00:09]} 45. Rxd1 {[%clk 0:01:27]}  Bxd1 {[%clk 0:00:10]} 46. Kf1 {[%clk 0:01:28]}  Ke6 {[%clk 0:00:10]} 47. Ke1 {[%clk 0:01:28]}  Ba4 {[%clk 0:00:11]} 48. Kd2 {[%clk 0:01:29]}  Bxb5 {[%clk 0:00:11]} 49. Ke3 {[%clk 0:01:29]}  f5 {[%clk 0:00:11]} 50. Kf4 {[%clk 0:01:30]}  Bxa6 {[%clk 0:00:11]} 51. Kg5 {[%clk 0:01:30]}  Be2 {[%clk 0:00:12]} 52. Kf4 {[%clk 0:01:30]}  Bg4 {[%clk 0:00:12]} 53. Ke3 {[%clk 0:01:31]}  Kd5 {[%clk 0:00:13]} 54. Kd2 {[%clk 0:01:31]}  b5 {[%clk 0:00:13]} 55. Kc3 {[%clk 0:01:32]}  a5 {[%clk 0:00:14]} 56. Kb3 {[%clk 0:01:32]}  Kxd4 {[%clk 0:00:15]} 0-1


[Site "https://www.chess.com"]

[Event "Titled Tuesday Blitz September 27 Early 2022"]
[White "Navarrete Mendez, Gonzalo Alberto"]
[Black "Gracia Alvarez, Gerardo Antonio"]
[WhiteFideId "5106850"]
[BlackFideId "5109124"]
[WhiteElo "2261"]
[BlackElo "2139"]
[Result "1-0"]
[Round "11"]
[TimeControl "180+1"]
[Date "2022.09.27"]
[WhiteClock "0:00:31"]
[BlackClock "0:01:11"]

1. e4 {[%clk 0:03:00]}  c5 {[%clk 0:03:00]} 2. Nf3 {[%clk 0:02:59]}  Nc6 {[%clk 0:03:00]} 3. Nc3 {[%clk 0:02:58]}  g6 {[%clk 0:02:56]} 4. Bc4 {[%clk 0:02:58]}  Bg7 {[%clk 0:02:52]} 5. O-O {[%clk 0:02:54]}  d6 {[%clk 0:02:48]} 6. d3 {[%clk 0:02:50]}  Nf6 {[%clk 0:02:45]} 7. h3 {[%clk 0:02:46]}  O-O {[%clk 0:02:41]} 8. a3 {[%clk 0:02:46]}  a6 {[%clk 0:02:37]} 9. Ba2 {[%clk 0:02:46]}  b5 {[%clk 0:02:37]} 10. Be3 {[%clk 0:02:46]}  Nd7 {[%clk 0:02:35]} 11. Qd2 {[%clk 0:02:43]}  Bb7 {[%clk 0:02:29]} 12. Rae1 {[%clk 0:02:38]}  Nde5 {[%clk 0:02:29]} 13. Nh2 {[%clk 0:02:23]}  Nd4 {[%clk 0:02:25]} 14. f4 {[%clk 0:02:17]}  Nec6 {[%clk 0:02:26]} 15. Nd1 {[%clk 0:02:15]}  b4 {[%clk 0:02:20]} 16. c3 {[%clk 0:02:12]}  bxc3 {[%clk 0:02:17]} 17. bxc3 {[%clk 0:02:13]}  Nb5 {[%clk 0:02:12]} 18. a4 {[%clk 0:02:08]}  Nc7 {[%clk 0:02:10]} 19. f5 {[%clk 0:02:08]}  Ne5 {[%clk 0:01:54]} 20. d4 {[%clk 0:01:55]}  cxd4 {[%clk 0:01:53]} 21. cxd4 {[%clk 0:01:56]}  Nd7 {[%clk 0:01:52]} 22. Bh6 {[%clk 0:01:55]}  Nf6 {[%clk 0:01:49]} 23. Nf2 {[%clk 0:01:28]}  d5 {[%clk 0:01:43]} 24. e5 {[%clk 0:01:13]}  Ne4 {[%clk 0:01:43]} 25. Nxe4 {[%clk 0:01:12]}  dxe4 {[%clk 0:01:44]} 26. Bxg7 {[%clk 0:01:12]}  Kxg7 {[%clk 0:01:43]} 27. f6+ {[%clk 0:00:46]}  exf6 {[%clk 0:01:38]} 28. exf6+ {[%clk 0:00:47]}  Kh8 {[%clk 0:01:36]} 29. Qh6 {[%clk 0:00:33]}  Qxd4+ {[%clk 0:01:34]} 30. Kh1 {[%clk 0:00:34]}  Rg8 {[%clk 0:01:35]} 31. Bxf7 {[%clk 0:00:34]}  Nd5 {[%clk 0:01:10]} 32. Bxg8 {[%clk 0:00:31]}  Rxg8 {[%clk 0:01:11]} 33. f7 {[%clk 0:00:31]} 1-0


[Site "https://www.chess.com"]

[Event "Titled Tuesday Blitz September 27 Early 2022"]
[White "Papp, Levente"]
[Black "Garv Gaur"]
[WhiteFideId "751243"]
[BlackFideId "45030839"]
[WhiteElo "2341"]
[BlackElo "1950"]
[Result "1-0"]
[Round "11"]
[TimeControl "180+1"]
[Date "2022.09.27"]
[WhiteClock "0:00:14"]
[BlackClock "0:00:02"]

1. b3 {[%clk 0:02:58]}  d5 {[%clk 0:02:59]} 2. Bb2 {[%clk 0:02:58]}  Bg4 {[%clk 0:02:54]} 3. c4 {[%clk 0:02:58]}  c6 {[%clk 0:02:53]} 4. h3 {[%clk 0:02:53]}  Bh5 {[%clk 0:02:52]} 5. g4 {[%clk 0:02:49]}  Bg6 {[%clk 0:02:52]} 6. Nf3 {[%clk 0:02:50]}  e6 {[%clk 0:02:51]} 7. d3 {[%clk 0:02:39]}  Nd7 {[%clk 0:02:51]} 8. Bg2 {[%clk 0:02:38]}  Ngf6 {[%clk 0:02:48]} 9. Nh4 {[%clk 0:02:25]}  Be7 {[%clk 0:02:42]} 10. Nxg6 {[%clk 0:02:25]}  hxg6 {[%clk 0:02:43]} 11. O-O {[%clk 0:02:24]}  Qc7 {[%clk 0:02:42]} 12. f4 {[%clk 0:02:12]}  Bc5+ {[%clk 0:02:36]} 13. d4 {[%clk 0:02:05]}  Bd6 {[%clk 0:02:36]} 14. e3 {[%clk 0:02:03]}  b6 {[%clk 0:02:09]} 15. Nc3 {[%clk 0:02:02]}  a6 {[%clk 0:02:07]} 16. Qf3 {[%clk 0:01:51]}  Qb7 {[%clk 0:02:02]} 17. e4 {[%clk 0:01:47]}  dxe4 {[%clk 0:01:59]} 18. Nxe4 {[%clk 0:01:48]}  Nxe4 {[%clk 0:01:53]} 19. Qxe4 {[%clk 0:01:48]}  Rc8 {[%clk 0:01:53]} 20. f5 {[%clk 0:01:15]}  Nf6 {[%clk 0:01:49]} 21. Qd3 {[%clk 0:01:11]}  gxf5 {[%clk 0:01:42]} 22. gxf5 {[%clk 0:01:09]}  O-O {[%clk 0:01:34]} 23. Rae1 {[%clk 0:01:08]}  exf5 {[%clk 0:01:24]} 24. Qxf5 {[%clk 0:01:08]}  Rce8 {[%clk 0:01:24]} 25. Rxe8 {[%clk 0:01:00]}  Rxe8 {[%clk 0:01:25]} 26. d5 {[%clk 0:00:58]}  Nh7 {[%clk 0:01:06]} 27. dxc6 {[%clk 0:00:50]}  Qe7 {[%clk 0:01:05]} 28. Bd5 {[%clk 0:00:39]}  Qe3+ {[%clk 0:01:00]} 29. Kh1 {[%clk 0:00:38]}  Rf8 {[%clk 0:00:31]} 30. Rg1 {[%clk 0:00:19]}  Ng5 {[%clk 0:00:13]} 31. Rxg5 {[%clk 0:00:14]}  Qe1+ {[%clk 0:00:04]} 32. Rg1 {[%clk 0:00:14]}  Qe2 {[%clk 0:00:02]} 33. Rxg7+ {[%clk 0:00:13]}  Kh8 {[%clk 0:00:02]} 34. Qh7# {[%clk 0:00:14]} 1-0


[Site "https://www.chess.com"]

[Event "Titled Tuesday Blitz September 27 Early 2022"]
[White "Principe, Gerson"]
[Black "Carrasco Miranda, Andres"]
[WhiteFideId "3804550"]
[BlackFideId "3405990"]
[WhiteElo "2280"]
[BlackElo "2177"]
[Result "1-0"]
[Round "11"]
[TimeControl "180+1"]
[Date "2022.09.27"]
[WhiteClock "0:00:07"]
[BlackClock "0:00:40"]

1. d4 {[%clk 0:02:24]}  Nf6 {[%clk 0:02:57]} 2. Nf3 {[%clk 0:02:24]}  g6 {[%clk 0:02:56]} 3. g3 {[%clk 0:02:24]}  Bg7 {[%clk 0:02:56]} 4. Bg2 {[%clk 0:02:24]}  O-O {[%clk 0:02:57]} 5. O-O {[%clk 0:02:25]}  d5 {[%clk 0:02:56]} 6. b3 {[%clk 0:02:25]}  c6 {[%clk 0:02:54]} 7. Bb2 {[%clk 0:02:26]}  Bf5 {[%clk 0:02:55]} 8. c4 {[%clk 0:02:26]}  a5 {[%clk 0:02:55]} 9. a3 {[%clk 0:02:26]}  Ne4 {[%clk 0:02:53]} 10. Nc3 {[%clk 0:02:25]}  Nd7 {[%clk 0:02:51]} 11. Rc1 {[%clk 0:02:25]}  Nxc3 {[%clk 0:02:50]} 12. Bxc3 {[%clk 0:02:24]}  Be4 {[%clk 0:02:51]} 13. e3 {[%clk 0:02:24]}  a4 {[%clk 0:02:45]} 14. cxd5 {[%clk 0:02:16]}  cxd5 {[%clk 0:02:42]} 15. Nd2 {[%clk 0:02:13]}  Bxg2 {[%clk 0:02:41]} 16. Kxg2 {[%clk 0:02:14]}  b5 {[%clk 0:02:38]} 17. bxa4 {[%clk 0:02:13]}  bxa4 {[%clk 0:02:39]} 18. Bb4 {[%clk 0:02:13]}  Re8 {[%clk 0:02:38]} 19. Rc6 {[%clk 0:01:59]}  e5 {[%clk 0:02:32]} 20. Nf3 {[%clk 0:01:58]}  e4 {[%clk 0:02:28]} 21. Nd2 {[%clk 0:01:58]}  Re6 {[%clk 0:02:24]} 22. Qc2 {[%clk 0:01:54]}  Qf6 {[%clk 0:02:05]} 23. Rc1 {[%clk 0:01:38]}  Bf8 {[%clk 0:02:01]} 24. Rc8 {[%clk 0:01:29]}  Rea6 {[%clk 0:01:47]} 25. Bxf8 {[%clk 0:01:22]}  Nxf8 {[%clk 0:01:46]} 26. Qc5 {[%clk 0:01:14]}  Rxc8 {[%clk 0:01:32]} 27. Qxc8 {[%clk 0:01:11]}  Kg7 {[%clk 0:01:29]} 28. Rc5 {[%clk 0:01:04]}  Rd6 {[%clk 0:01:21]} 29. Qa8 {[%clk 0:00:55]}  Ne6 {[%clk 0:01:19]} 30. Rxd5 {[%clk 0:00:51]}  Ng5 {[%clk 0:01:08]} 31. h4 {[%clk 0:00:31]}  Nf3 {[%clk 0:00:59]} 32. Rxd6 {[%clk 0:00:31]}  Qxd6 {[%clk 0:01:00]} 33. Nxe4 {[%clk 0:00:30]}  Ne1+ {[%clk 0:00:58]} 34. Kf1 {[%clk 0:00:29]}  Qxa3 {[%clk 0:00:55]} 35. Kxe1 {[%clk 0:00:30]}  Qa1+ {[%clk 0:00:48]} 36. Ke2 {[%clk 0:00:29]}  Qb2+ {[%clk 0:00:49]} 37. Kf3 {[%clk 0:00:26]}  a3 {[%clk 0:00:49]} 38. Qa5 {[%clk 0:00:12]}  a2 {[%clk 0:00:46]} 39. Qe5+ {[%clk 0:00:13]}  Kg8 {[%clk 0:00:44]} 40. Nf6+ {[%clk 0:00:12]}  Kf8 {[%clk 0:00:40]} 41. Nd7+ {[%clk 0:00:07]}  Kg8 {[%clk 0:00:39]} 42. Qe8+ {[%clk 0:00:07]}  Kg7 {[%clk 0:00:40]} 43. Qf8# {[%clk 0:00:07]} 1-0


[Site "https://www.chess.com"]

[Event "Titled Tuesday Blitz September 27 Early 2022"]
[White "Przybylski, Wojciech"]
[Black "Maltsevskaya, Aleksandra"]
[WhiteFideId "1117599"]
[BlackFideId "24174041"]
[WhiteElo "2133"]
[BlackElo "2243"]
[Result "1-0"]
[Round "11"]
[TimeControl "180+1"]
[Date "2022.09.27"]
[WhiteClock "0:00:05"]
[BlackClock "0:00:05"]

1. e4 {[%clk 0:03:00]}  c5 {[%clk 0:03:00]} 2. Nf3 {[%clk 0:02:59]}  e6 {[%clk 0:03:00]} 3. b3 {[%clk 0:02:59]}  Nc6 {[%clk 0:03:01]} 4. Bb5 {[%clk 0:02:58]}  b6 {[%clk 0:03:01]} 5. Bxc6 {[%clk 0:02:56]}  dxc6 {[%clk 0:03:02]} 6. Bb2 {[%clk 0:02:56]}  Ba6 {[%clk 0:03:02]} 7. d3 {[%clk 0:02:55]}  Nf6 {[%clk 0:03:01]} 8. O-O {[%clk 0:02:54]}  Be7 {[%clk 0:03:02]} 9. Nbd2 {[%clk 0:02:53]}  O-O {[%clk 0:03:02]} 10. h3 {[%clk 0:02:47]}  b5 {[%clk 0:02:52]} 11. a4 {[%clk 0:02:40]}  bxa4 {[%clk 0:02:49]} 12. Rxa4 {[%clk 0:02:38]}  Bb5 {[%clk 0:02:49]} 13. Ra2 {[%clk 0:02:31]}  a5 {[%clk 0:02:50]} 14. Qa1 {[%clk 0:02:31]}  Qb6 {[%clk 0:02:38]} 15. Ne5 {[%clk 0:02:30]}  Rfd8 {[%clk 0:02:34]} 16. Ndc4 {[%clk 0:02:26]}  Bxc4 {[%clk 0:02:28]} 17. Nxc4 {[%clk 0:02:26]}  Qb7 {[%clk 0:02:19]} 18. Rxa5 {[%clk 0:02:23]}  Rxa5 {[%clk 0:02:19]} 19. Qxa5 {[%clk 0:02:23]}  Ra8 {[%clk 0:02:17]} 20. Qc3 {[%clk 0:02:23]}  Ne8 {[%clk 0:02:13]} 21. f4 {[%clk 0:02:16]}  f6 {[%clk 0:02:12]} 22. Ra1 {[%clk 0:02:09]}  Rxa1+ {[%clk 0:02:10]} 23. Bxa1 {[%clk 0:02:09]}  Nc7 {[%clk 0:02:10]} 24. Qa5 {[%clk 0:01:58]}  Kf7 {[%clk 0:02:05]} 25. Bb2 {[%clk 0:01:49]}  Nb5 {[%clk 0:02:03]} 26. Qb6 {[%clk 0:01:48]}  Qa8 {[%clk 0:02:02]} 27. Qa5 {[%clk 0:01:42]}  Qb7 {[%clk 0:02:00]} 28. g4 {[%clk 0:01:41]}  h5 {[%clk 0:01:58]} 29. Kf2 {[%clk 0:01:37]}  hxg4 {[%clk 0:01:58]} 30. hxg4 {[%clk 0:01:37]}  Qc8 {[%clk 0:01:57]} 31. Qa1 {[%clk 0:01:21]}  Qh8 {[%clk 0:01:57]} 32. Kg2 {[%clk 0:01:16]}  Qh6 {[%clk 0:01:30]} 33. Qf1 {[%clk 0:01:08]}  Qh8 {[%clk 0:01:25]} 34. Qh1 {[%clk 0:01:00]}  Qa8 {[%clk 0:01:18]} 35. Qh5+ {[%clk 0:00:59]}  Kg8 {[%clk 0:01:18]} 36. f5 {[%clk 0:00:58]}  exf5 {[%clk 0:01:04]} 37. gxf5 {[%clk 0:00:57]}  Nd4 {[%clk 0:00:37]} 38. Bxd4 {[%clk 0:00:49]}  cxd4 {[%clk 0:00:38]} 39. Qe2 {[%clk 0:00:49]}  c5 {[%clk 0:00:36]} 40. Kf2 {[%clk 0:00:38]}  Bd8 {[%clk 0:00:34]} 41. e5 {[%clk 0:00:36]}  Qh1 {[%clk 0:00:21]} 42. Qf3 {[%clk 0:00:33]}  Qh2+ {[%clk 0:00:18]} 43. Kf1 {[%clk 0:00:29]}  Kh7 {[%clk 0:00:12]} 44. e6 {[%clk 0:00:23]}  Be7 {[%clk 0:00:09]} 45. Qf2 {[%clk 0:00:18]}  Qh3+ {[%clk 0:00:09]} 46. Ke2 {[%clk 0:00:17]}  g6 {[%clk 0:00:08]} 47. fxg6+ {[%clk 0:00:16]}  Kxg6 {[%clk 0:00:09]} 48. Qf3 {[%clk 0:00:11]}  Qh2+ {[%clk 0:00:07]} 49. Kf1 {[%clk 0:00:09]}  f5 {[%clk 0:00:07]} 50. Qg2+ {[%clk 0:00:08]}  Qxg2+ {[%clk 0:00:07]} 51. Kxg2 {[%clk 0:00:09]}  Kf6 {[%clk 0:00:07]} 52. Kf3 {[%clk 0:00:08]}  Kxe6 {[%clk 0:00:08]} 53. Nd2 {[%clk 0:00:08]}  Bg5 {[%clk 0:00:07]} 54. Nc4 {[%clk 0:00:05]}  Kd5 {[%clk 0:00:07]} 55. Ke2 {[%clk 0:00:05]}  Kc6 {[%clk 0:00:06]} 56. Ne5+ {[%clk 0:00:05]}  Kb5 {[%clk 0:00:04]} 57. Nf3 {[%clk 0:00:03]}  Bh6 {[%clk 0:00:03]} 58. Kd1 {[%clk 0:00:03]}  Kb4 {[%clk 0:00:04]} 59. Nh4 {[%clk 0:00:03]}  f4 {[%clk 0:00:04]} 60. Nf3 {[%clk 0:00:04]}  Bg7 {[%clk 0:00:04]} 61. Ng5 {[%clk 0:00:03]}  Bf6 {[%clk 0:00:04]} 62. Ne4 {[%clk 0:00:03]}  Bh4 {[%clk 0:00:03]} 63. Nd2 {[%clk 0:00:03]}  Kc3 {[%clk 0:00:02]} 64. Ne4+ {[%clk 0:00:03]}  Kb2 {[%clk 0:00:03]} 65. Nd2 {[%clk 0:00:03]}  Bf2 {[%clk 0:00:02]} 66. Nf3 {[%clk 0:00:03]}  Be3 {[%clk 0:00:02]} 67. Ne5 {[%clk 0:00:03]}  Kc3 {[%clk 0:00:02]} 68. Nf3 {[%clk 0:00:03]}  Kb4 {[%clk 0:00:02]} 69. Ke2 {[%clk 0:00:02]}  Kb5 {[%clk 0:00:02]} 70. Ne1 {[%clk 0:00:02]}  Bc1 {[%clk 0:00:02]} 71. Nf3 {[%clk 0:00:02]}  Kb4 {[%clk 0:00:02]} 72. Ne5 {[%clk 0:00:02]}  Kc3 {[%clk 0:00:02]} 73. Kd1 {[%clk 0:00:02]}  Be3 {[%clk 0:00:02]} 74. Nf3 {[%clk 0:00:02]}  Kb4 {[%clk 0:00:03]} 75. Ng5 {[%clk 0:00:02]}  Kb5 {[%clk 0:00:03]} 76. Ke2 {[%clk 0:00:02]}  Kc6 {[%clk 0:00:04]} 77. Ne4 {[%clk 0:00:02]}  Kd5 {[%clk 0:00:04]} 78. Ng5 {[%clk 0:00:02]}  Ke5 {[%clk 0:00:04]} 79. Kf3 {[%clk 0:00:02]}  Kf5 {[%clk 0:00:04]} 80. Ne4 {[%clk 0:00:02]}  Ke5 {[%clk 0:00:04]} 81. Nxc5 {[%clk 0:00:03]}  Kd5 {[%clk 0:00:05]} 82. Ne4 {[%clk 0:00:03]}  Kc6 {[%clk 0:00:05]} 83. Nf6 {[%clk 0:00:02]}  Kb5 {[%clk 0:00:06]} 84. Nd5 {[%clk 0:00:02]}  Kc5 {[%clk 0:00:05]} 85. Nxf4 {[%clk 0:00:02]}  Bd2 {[%clk 0:00:03]} 86. Ne2 {[%clk 0:00:02]}  Be3 {[%clk 0:00:02]} 87. Ke4 {[%clk 0:00:03]}  Bf2 {[%clk 0:00:02]} 88. Nf4 {[%clk 0:00:02]}  Be3 {[%clk 0:00:02]} 89. Ne6+ {[%clk 0:00:02]}  Kb4 {[%clk 0:00:03]} 90. Nxd4 {[%clk 0:00:03]}  Bg1 {[%clk 0:00:03]} 91. Ne2 {[%clk 0:00:03]}  Bb6 {[%clk 0:00:04]} 92. d4 {[%clk 0:00:03]}  Kb5 {[%clk 0:00:04]} 93. Kd3 {[%clk 0:00:03]}  Kb4 {[%clk 0:00:04]} 94. c3+ {[%clk 0:00:04]}  Kxb3 {[%clk 0:00:05]} 95. Nf4 {[%clk 0:00:04]}  Ba5 {[%clk 0:00:05]} 96. Nd5 {[%clk 0:00:05]}  Bd8 {[%clk 0:00:04]} 97. c4 {[%clk 0:00:05]}  Ka4 {[%clk 0:00:05]} 98. Nc3+ {[%clk 0:00:05]}  Kb4 {[%clk 0:00:05]} 99. Ne4 {[%clk 0:00:06]}  Bc7 {[%clk 0:00:04]} 100. Nf6 {[%clk 0:00:06]}  Bd8 {[%clk 0:00:03]} 101. Nd5+ {[%clk 0:00:06]}  Ka4 {[%clk 0:00:03]} 102. Nc3+ {[%clk 0:00:06]}  Kb4 {[%clk 0:00:04]} 103. Ne2 {[%clk 0:00:06]}  Bc7 {[%clk 0:00:04]} 104. Nc1 {[%clk 0:00:05]}  Bf4 {[%clk 0:00:03]} 105. Ne2 {[%clk 0:00:04]}  Bc7 {[%clk 0:00:04]} 106. Ng1 {[%clk 0:00:04]}  Bd8 {[%clk 0:00:04]} 107. Nf3 {[%clk 0:00:05]}  Bf6 {[%clk 0:00:04]} 108. Nd2 {[%clk 0:00:05]}  Ka4 {[%clk 0:00:04]} 109. Ke4 {[%clk 0:00:04]}  Kb4 {[%clk 0:00:05]} 110. Kd5 {[%clk 0:00:04]}  Kc3 {[%clk 0:00:05]} 111. Ne4+ {[%clk 0:00:05]} 1-0


[Site "https://www.chess.com"]

[Event "Titled Tuesday Blitz September 27 Early 2022"]
[White "Quispe Santacruz, Javier"]
[Black "Saravana, Krishnan P."]
[WhiteFideId "3800920"]
[BlackFideId "5018382"]
[WhiteElo "1930"]
[BlackElo "2155"]
[Result "0-1"]
[Round "11"]
[TimeControl "180+1"]
[Date "2022.09.27"]
[WhiteClock "0:00:01"]
[BlackClock "0:01:42"]

1. e4 {[%clk 0:03:00]}  c5 {[%clk 0:02:59]} 2. Nf3 {[%clk 0:02:57]}  d6 {[%clk 0:02:59]} 3. Bb5+ {[%clk 0:02:55]}  Nc6 {[%clk 0:02:58]} 4. d4 {[%clk 0:02:50]}  cxd4 {[%clk 0:02:57]} 5. Nxd4 {[%clk 0:02:48]}  Bd7 {[%clk 0:02:57]} 6. Bxc6 {[%clk 0:02:47]}  bxc6 {[%clk 0:02:56]} 7. c4 {[%clk 0:02:47]}  e5 {[%clk 0:02:57]} 8. Nf3 {[%clk 0:02:44]}  h6 {[%clk 0:02:57]} 9. Nc3 {[%clk 0:02:43]}  Nf6 {[%clk 0:02:57]} 10. Qd3 {[%clk 0:02:35]}  Be6 {[%clk 0:02:54]} 11. b3 {[%clk 0:02:32]}  Nd7 {[%clk 0:02:53]} 12. Ba3 {[%clk 0:02:24]}  Qa5 {[%clk 0:02:52]} 13. Bb2 {[%clk 0:02:16]}  Nc5 {[%clk 0:02:52]} 14. Qc2 {[%clk 0:02:15]}  Be7 {[%clk 0:02:51]} 15. O-O {[%clk 0:02:13]}  Bg4 {[%clk 0:02:50]} 16. Nd2 {[%clk 0:02:06]}  O-O {[%clk 0:02:44]} 17. f3 {[%clk 0:02:06]}  Be6 {[%clk 0:02:43]} 18. a3 {[%clk 0:01:52]}  Qb6 {[%clk 0:02:42]} 19. Kh1 {[%clk 0:01:49]}  Nxb3 {[%clk 0:02:03]} 20. Nxb3 {[%clk 0:01:10]}  Rab8 {[%clk 0:02:02]} 21. c5 {[%clk 0:00:42]}  Qxb3 {[%clk 0:01:55]} 22. Qxb3 {[%clk 0:00:41]}  Rxb3 {[%clk 0:01:54]} 23. cxd6 {[%clk 0:00:41]}  Bxd6 {[%clk 0:01:54]} 24. Rab1 {[%clk 0:00:36]}  Rfb8 {[%clk 0:01:53]} 25. Ba1 {[%clk 0:00:28]}  Bxa3 {[%clk 0:01:51]} 26. Rxb3 {[%clk 0:00:24]}  Rxb3 {[%clk 0:01:52]} 27. Ne2 {[%clk 0:00:20]}  Bc4 {[%clk 0:01:51]} 28. Re1 {[%clk 0:00:18]}  Bxe2 {[%clk 0:01:51]} 29. Bxe5 {[%clk 0:00:11]}  Bc5 {[%clk 0:01:46]} 30. h3 {[%clk 0:00:07]}  Bb5 {[%clk 0:01:44]} 31. Rc1 {[%clk 0:00:06]}  Bf8 {[%clk 0:01:43]} 32. Kh2 {[%clk 0:00:01]}  a5 {[%clk 0:01:42]} 0-1


[Site "https://www.chess.com"]

[Event "Titled Tuesday Blitz September 27 Early 2022"]
[White "Ravi, Teja S."]
[Black "Pultinevicius, Paulius"]
[WhiteFideId "5017220"]
[BlackFideId "12809390"]
[WhiteElo "2432"]
[BlackElo "2472"]
[Result "0-1"]
[Round "11"]
[TimeControl "180+1"]
[Date "2022.09.27"]
[WhiteClock "0:00:04"]
[BlackClock "0:00:09"]

1. d4 {[%clk 0:02:57]}  d5 {[%clk 0:02:58]} 2. Nf3 {[%clk 0:02:56]}  Nf6 {[%clk 0:02:55]} 3. Bf4 {[%clk 0:02:57]}  c5 {[%clk 0:02:50]} 4. e3 {[%clk 0:02:57]}  e6 {[%clk 0:02:50]} 5. Nbd2 {[%clk 0:02:57]}  Bd6 {[%clk 0:02:51]} 6. Bb5+ {[%clk 0:02:54]}  Nc6 {[%clk 0:02:45]} 7. Bxc6+ {[%clk 0:02:50]}  bxc6 {[%clk 0:02:46]} 8. Bxd6 {[%clk 0:02:51]}  Qxd6 {[%clk 0:02:40]} 9. c3 {[%clk 0:02:51]}  O-O {[%clk 0:02:38]} 10. Qa4 {[%clk 0:02:51]}  cxd4 {[%clk 0:02:38]} 11. cxd4 {[%clk 0:02:51]}  Bd7 {[%clk 0:02:31]} 12. O-O {[%clk 0:02:50]}  a5 {[%clk 0:02:27]} 13. Rfc1 {[%clk 0:02:48]}  Rfb8 {[%clk 0:02:23]} 14. Nb3 {[%clk 0:02:39]}  Ne4 {[%clk 0:02:19]} 15. Ne5 {[%clk 0:02:31]}  Be8 {[%clk 0:02:18]} 16. f3 {[%clk 0:02:14]}  c5 {[%clk 0:02:19]} 17. Qa3 {[%clk 0:02:13]}  cxd4 {[%clk 0:02:19]} 18. exd4 {[%clk 0:01:55]}  a4 {[%clk 0:02:17]} 19. Nc5 {[%clk 0:01:44]}  Nxc5 {[%clk 0:02:13]} 20. Rxc5 {[%clk 0:01:43]}  Qb6 {[%clk 0:02:10]} 21. Nd3 {[%clk 0:01:33]}  Bb5 {[%clk 0:02:09]} 22. Nb4 {[%clk 0:01:16]}  Bc4 {[%clk 0:02:06]} 23. Rc1 {[%clk 0:01:11]}  h6 {[%clk 0:02:00]} 24. Rc2 {[%clk 0:00:53]}  Kh7 {[%clk 0:01:56]} 25. Nd3 {[%clk 0:00:53]}  f6 {[%clk 0:01:46]} 26. Nf4 {[%clk 0:00:46]}  Re8 {[%clk 0:01:22]} 27. h4 {[%clk 0:00:40]}  Qd6 {[%clk 0:01:01]} 28. Qe3 {[%clk 0:00:36]}  Kg8 {[%clk 0:00:58]} 29. b3 {[%clk 0:00:21]}  axb3 {[%clk 0:00:57]} 30. axb3 {[%clk 0:00:22]}  e5 {[%clk 0:00:48]} 31. dxe5 {[%clk 0:00:17]}  Ra1+ {[%clk 0:00:37]} 32. Kh2 {[%clk 0:00:15]}  Rxe5 {[%clk 0:00:37]} 33. Qd4 {[%clk 0:00:13]}  Re4 {[%clk 0:00:37]} 34. Rc8+ {[%clk 0:00:11]}  Kh7 {[%clk 0:00:37]} 35. fxe4 {[%clk 0:00:08]}  Qxf4+ {[%clk 0:00:37]} 36. g3 {[%clk 0:00:09]}  Qf1 {[%clk 0:00:37]} 37. g4 {[%clk 0:00:06]}  Qh1+ {[%clk 0:00:31]} 38. Kg3 {[%clk 0:00:06]}  Rg1+ {[%clk 0:00:26]} 39. Kf4 {[%clk 0:00:07]}  Rd1 {[%clk 0:00:12]} 40. Qe3 {[%clk 0:00:04]}  Rd3 {[%clk 0:00:09]} 0-1


[Site "https://www.chess.com"]